bitfinex/quotes_ETHUSD_20260208
["timestamp","ask_amount","ask_price","bid_price","bid_amount"]
[1770573923294,1.19189511,2097.5,2096.4,0.93036243]
[1770573923825,1.19189511,2097.5,2096.8,0.001]
[1770573926128,1.2396039,2097.5,2096.8,0.001]
[1770573927006,1.19189511,2097.5,2096.8,0.001]
[1770573927818,1.19189511,2097.5,2096.4,1.19251571]
[1770573927819,6.92694933,2097.3,2096.3,0.001]
[1770573928018,0.1024,2097.2,2096.3,0.001]
[1770573928215,6.98164054,2096.9,2095.6,0.93036243]
[1770573928415,6.42407913,2097.3,2096.0,0.93036243]
[1770573928416,3.4334,2097.1,2096.0,0.93036243]
[1770573929211,0.1024,2096.9,2096.0,0.93036243]
[1770573929407,0.1024,2096.9,2095.7,0.93036243]
[1770573929637,0.1024,2096.9,2095.8,0.93036243]
[1770573929833,0.15010879,2096.9,2095.8,2.12321959]
[1770573930041,0.1024,2096.9,2095.8,0.93036243]
[1770573930237,0.15010879,2096.9,2095.8,0.93036243]
[1770573930539,0.1024,2096.9,2095.9,0.93036243]
[1770573930738,0.15010879,2096.9,2095.9,0.93036243]
[1770573931120,1.19229301,2096.8,2095.9,0.93036243]
[1770573931516,0.1024,2096.7,2095.6,0.93036243]
[1770573931715,0.1024,2096.5,2095.3,2.12350608]
[1770573931915,3.332,2096.4,2095.4,2.12344338]
[1770573932224,0.1024,2096.3,2095.5,0.93036243]
[1770573932429,0.1024,2096.3,2095.6,1.19296222]
[1770573932742,0.1024,2096.3,2095.5,2.12335688]
[1770573933126,0.1024,2096.3,2095.5,0.93036243]
[1770573933327,0.1024,2096.3,2095.5,2.12339399]
[1770573933528,1.29501956,2096.3,2095.5,2.12339399]
[1770573935154,1.19244932,2096.6,2095.6,0.93036243]
[1770573935352,3.332,2096.9,2095.6,0.93036243]
[1770573935532,1.19229301,2096.8,2095.8,0.93036243]
[1770573936647,3.332,2096.9,2095.8,0.93036243]
[1770573936851,4.52425379,2096.9,2095.8,0.93036243]
[1770573937022,4.52423746,2096.9,2095.8,0.93036243]
[1770573937554,3.332,2096.9,2096.0,0.93036243]
[1770573939128,10.27,2097.5,2096.2,0.93036243]
[1770573939450,8.07108467,2097.6,2096.3,1.19257739]
[1770573939637,1.19184413,2097.6,2096.4,0.93036243]
[1770573942156,1.19184413,2097.6,2096.6,0.93036243]
[1770573944158,1.19184413,2097.6,2096.7,2.12271231]
[1770573944339,1.19184413,2097.6,2096.8,0.93036243]
[1770573947771,1.69471433,2097.6,2096.5,2.16743603]
[1770573949247,1.69471433,2097.6,2096.6,0.97500053]
[1770573949559,0.55057899,2097.4,2096.3,0.97500053]
[1770573949735,0.55057899,2097.4,2096.4,2.16751917]
[1770573950233,0.1024,2097.5,2096.6,0.97500053]
[1770573950533,0.002,2097.4,2096.6,0.97500053]
[1770573950864,0.002,2097.4,2096.8,0.97500053]
[1770573953381,0.002,2097.4,2096.9,0.97500053]
[1770573954892,0.002,2097.4,2097.0,0.97500053]
[1770573958084,0.002,2097.4,2096.7,0.97500053]
[1770573958284,0.04770879,2097.3,2096.4,0.97500053]
[1770573959360,1.19204928,2097.3,2096.4,0.97500053]
[1770573960582,0.04770879,2097.2,2096.4,0.97500053]
[1770573960886,1.19204928,2097.3,2096.4,0.97500053]
[1770573961275,4.76985652,2097.4,2096.6,0.97500053]
[1770573961455,0.002,2097.4,2096.6,0.97500053]
[1770573961656,0.002,2097.4,2096.8,0.97500053]
[1770573962070,0.002,2097.4,2096.6,0.97500053]
[1770573963667,0.002,2097.4,2096.8,0.97500053]
[1770573966093,0.002,2097.4,2097.0,0.97500053]
[1770573970006,0.61057899,2097.3,2096.3,0.97500053]
[1770573970175,0.61057899,2097.3,2096.2,1.19263212]
[1770573970375,0.61057899,2097.3,2096.1,2.16865519]
[1770573970683,1.19206561,2097.2,2096.2,2.16762658]
[1770573971904,0.61057899,2097.0,2096.1,0.001]
[1770573972203,3.332,2096.9,2096.1,0.001]
[1770573972582,0.5628702,2096.8,2096.1,0.001]
[1770573972785,1.24005867,2096.7,2096.1,0.001]
[1770573973803,1.19234988,2096.7,2096.1,0.001]
[1770573974014,1.19234988,2096.7,2096.1,0.97600053]
[1770573974805,4.769202,2096.8,2096.1,0.97600053]
[1770573975806,0.15010879,2096.7,2096.1,0.001]
[1770573976802,0.15010879,2096.7,2096.1,1.00081822]
[1770573976803,1.29478237,2096.7,2096.1,1.00081822]
[1770573977209,1.19238237,2096.7,2096.1,1.00081822]
[1770573978077,4.52424085,2096.9,2096.1,1.00081822]
[1770573979312,4.52424085,2096.9,2096.3,0.99981822]
[1770573979690,4.57194964,2096.9,2096.3,0.99981822]
[1770573979891,5.02424085,2096.9,2096.1,2.1934952]
[1770573980302,5.02424085,2096.9,2096.1,1.19367698]
[1770573980609,5.02424085,2096.9,2096.2,0.99981822]
[1770573981891,5.02424085,2096.9,2096.3,0.99981822]
[1770573983323,3.832,2096.9,2096.3,0.99981822]
[1770573983485,3.832,2096.9,2096.5,0.99981822]
[1770573983814,3.83046602,2096.9,2096.5,0.99981822]
[1770573985035,3.33046602,2096.9,2096.5,0.99981822]
[1770573985900,3.33046602,2096.9,2096.3,2.19238601]
[1770573986101,3.33046602,2096.9,2096.5,1.19246128]
[1770573986298,1.19229301,2096.8,2096.1,1.00081822]
[1770573986500,1.19229301,2096.8,2096.1,1.1936848]
[1770573986707,8.09962576,2096.9,2096.1,1.1936848]
[1770573986708,4.52270648,2096.9,2096.3,0.99981822]
[1770573988428,4.52270648,2096.9,2096.2,2.19242545]
[1770573988730,4.52270648,2096.9,2096.2,0.99981822]
[1770573989134,4.52270648,2096.9,2096.1,1.19368487]
[1770573989327,4.52270648,2096.9,2096.1,2.19350309]
[1770573989632,4.52271038,2096.9,2096.4,0.001]
[1770573991149,4.52271038,2096.9,2096.4,1.00081822]
[1770573991150,3.33046602,2096.9,2096.4,1.00081822]
[1770573991323,4.52271146,2096.9,2096.4,1.00081822]
[1770573991510,3.33046602,2096.9,2096.4,1.00081822]
[1770573991838,4.52270302,2096.9,2096.4,1.00081822]
[1770573993135,3.33046602,2096.9,2096.4,1.00081822]
[1770573993642,3.33046602,2096.9,2096.4,2.19332095]
[1770573993938,4.52270445,2096.9,2096.4,1.00081822]
[1770573997127,4.52270445,2096.9,2096.4,0.001]
[1770573999545,4.57041324,2096.9,2096.4,0.001]
[1770573999734,4.52270445,2096.9,2096.4,0.001]
[1770574002440,5.13328344,2096.9,2096.4,0.001]
[1770574003148,5.13328344,2096.9,2096.6,0.001]
[1770574003348,5.13328344,2096.9,2096.1,0.001]
[1770574003528,0.002,2096.7,2096.1,0.001]
[1770574004646,0.002,2096.7,2096.2,0.99981822]
[1770574005332,0.002,2096.7,2096.4,0.96407157]
[1770574009458,0.002,2096.7,2096.5,0.96407157]
[1770574009671,0.002,2096.9,2096.5,1.19246334]
[1770574009852,0.002,2096.9,2096.6,0.96407157]
[1770574011742,0.002,2096.9,2096.7,0.96407157]
[1770574013860,0.002,2096.9,2096.8,0.96407157]
[1770574015466,0.002,2096.9,2096.6,2.15644279]
[1770574015647,0.002,2096.9,2096.7,2.15642021]
[1770574015966,0.002,2096.9,2096.8,0.96407157]
[1770574016170,0.002,2096.9,2096.8,0.96507157]
[1770574017543,3.335,2097.2,2096.8,0.96507157]
[1770574017544,0.002,2097.2,2096.9,0.96407157]
[1770574020072,0.002,2097.2,2096.8,0.001]
[1770574020876,3.335,2097.2,2096.8,0.001]
[1770574021051,3.335,2097.2,2096.1,0.96507157]
[1770574021052,0.61457899,2097.1,2096.1,0.96507157]
[1770574021373,0.5668702,2097.0,2096.1,0.001]
[1770574021751,0.04770879,2096.8,2096.1,0.001]
[1770574022156,0.5668702,2096.8,2096.1,0.001]
[1770574022355,1.19223615,2096.9,2096.1,0.001]
[1770574022582,0.04770879,2096.8,2096.1,0.96507157]
[1770574023877,1.19223615,2096.9,2096.1,0.96507157]
[1770574024064,1.75910635,2096.9,2096.1,0.96507157]
[1770574024675,0.71697899,2096.8,2095.9,0.001]
[1770574024977,0.61457899,2096.6,2095.9,0.001]
[1770574025184,3.333,2096.5,2095.9,0.001]
[1770574025956,1.19223615,2096.9,2096.2,0.96407157]
[1770574026182,4.52523615,2096.9,2096.2,0.96407157]
[1770574029690,0.002,2096.7,2096.2,0.96407157]
[1770574031166,0.002,2096.7,2096.4,0.96407157]
[1770574031886,0.002,2096.7,2096.2,4.77037694]
[1770574031887,0.002,2096.7,2096.2,2.15666582]
[1770574032061,0.002,2096.7,2096.3,0.96407157]
[1770574033092,0.002,2097.2,2096.9,0.96407157]
[1770574033298,0.002,2097.2,2097.1,0.96407157]
[1770574033463,0.002,2097.4,2097.1,0.96407157]
[1770574035780,0.002,2097.8,2097.3,0.94936392]
[1770574035978,5.9630156,2097.7,2097.3,0.94936392]
[1770574036393,0.002,2097.8,2097.3,0.94936392]
[1770574037882,0.002,2097.8,2097.4,2.14131586]
[1770574038084,0.002,2097.8,2097.2,1.19203264]
[1770574038868,0.002,2097.8,2097.0,2.14151014]
[1770574039069,0.002,2097.8,2097.0,1.19214622]
[1770574039269,0.002,2097.8,2096.8,2.14165142]
[1770574039270,1.0326085,2097.7,2096.8,2.14165142]
[1770574040095,1.19183829,2097.6,2096.8,2.14165142]
[1770574041493,0.002,2097.4,2096.9,0.94936392]
[1770574042381,0.002,2097.6,2097.1,0.94936392]
[1770574044407,0.002,2097.6,2097.3,0.94936392]
[1770574047301,0.002,2097.6,2097.4,1.19195194]
[1770574047807,0.002,2097.6,2097.4,2.14131586]
[1770574050890,0.002,2097.6,2097.0,1.19217277]
[1770574051807,0.002,2097.6,2096.9,4.76889265]
[1770574052777,0.002,2097.6,2096.9,1.19223615]
[1770574053904,0.002,2097.6,2097.0,0.001]
[1770574054282,0.002,2097.4,2097.0,0.001]
[1770574054996,0.9322085,2097.4,2097.0,0.001]
[1770574056087,1.19200877,2097.3,2097.0,0.001]
[1770574057014,1.19200877,2097.3,2096.8,0.001]
[1770574057015,0.9302085,2097.2,2096.8,0.001]
[1770574057216,0.9302085,2097.2,2096.2,1.19262221]
[1770574057516,0.9302085,2097.2,2096.3,1.19257172]
[1770574057815,0.9302085,2097.2,2096.3,2.14193564]
[1770574058022,0.9302085,2097.2,2096.2,1.19259818]
[1770574058224,1.19212245,2097.1,2096.2,2.14199821]
[1770574058911,2.12233095,2097.1,2096.2,2.14199821]
[1770574061998,1.19212245,2097.1,2096.3,0.94936392]
[1770574062201,4.76848981,2097.2,2096.4,2.14188443]
[1770574063743,0.002,2097.4,2096.5,0.94936392]
[1770574064031,1.19249348,2097.4,2096.7,0.94936392]
[1770574064399,1.19249348,2097.4,2096.7,2.14167616]
[1770574064831,0.96269717,2097.3,2096.5,1.19243162]
[1770574064999,0.96269717,2097.3,2096.6,1.1924]
[1770574065829,0.96269717,2097.3,2096.4,5.71934679]
[1770574065830,0.96269717,2097.3,2096.5,1.19242457]
[1770574066024,0.96269717,2097.3,2096.6,0.001]
[1770574066328,1.19406561,2097.2,2096.6,0.001]
[1770574069116,0.96269717,2097.1,2096.6,0.001]
[1770574071032,1.19229301,2096.8,2096.4,0.001]
[1770574071342,0.96269717,2096.7,2096.4,0.001]
[1770574071639,1.19229301,2096.8,2096.4,0.001]
[1770574076339,4.76899364,2096.9,2096.4,0.001]
[1770574077044,3.332,2097.0,2096.4,0.97784458]
[1770574077363,4.52418676,2097.0,2096.4,0.97784458]
[1770574078732,4.52418676,2097.0,2096.6,0.001]
[1770574078932,0.002,2096.9,2096.6,0.001]
[1770574085446,0.002,2096.9,2096.6,0.97784458]
[1770574086051,0.002,2096.9,2096.6,2.17021154]
[1770574086252,0.002,2096.9,2096.7,0.97684458]
[1770574087647,0.002,2096.9,2096.7,2.16919424]
[1770574088028,0.002,2096.9,2096.7,0.97684458]
[1770574088951,0.002,2096.9,2096.7,2.16919116]
[1770574090056,4.76761485,2097.5,2096.6,4.77048982]
[1770574090057,0.002,2097.6,2096.8,0.97684458]
[1770574090228,0.002,2097.6,2096.8,1.02455337]
[1770574091856,0.002,2097.6,2097.0,0.97684458]
[1770574092350,0.002,2097.8,2097.0,0.97684458]
[1770574092556,0.00653896,2097.8,2097.0,0.97684458]
[1770574093044,0.002,2097.8,2097.1,0.97684458]
[1770574093824,0.002,2097.8,2097.5,0.97684458]
[1770574095431,0.00653896,2097.8,2097.4,2.18665728]
[1770574096526,0.00653896,2097.8,2097.4,1.19195194]
[1770574096722,0.00653896,2097.8,2097.5,0.99470534]
[1770574097452,0.99691925,2097.8,2096.8,4.77003048]
[1770574097637,0.99691925,2097.8,2097.1,1.78757453]
[1770574097829,0.002,2097.8,2097.1,1.78757453]
[1770574100333,0.002,2097.8,2097.2,0.99470534]
[1770574100533,0.002,2097.8,2097.3,2.18671411]
[1770574101543,0.002,2097.8,2097.3,0.59546104]
[1770574101746,0.002,2097.8,2097.0,2.18684053]
[1770574101966,0.002,2097.8,2097.2,0.59546104]
[1770574102773,0.99691925,2097.8,2097.2,0.59546104]
[1770574103456,0.99691925,2097.8,2096.8,2.18796031]
[1770574103664,0.99691925,2097.8,2096.9,0.59546104]
[1770574103960,0.99691925,2097.8,2097.0,1.19216615]
[1770574104360,0.99691925,2097.8,2097.5,0.001]
[1770574104563,0.002,2097.6,2097.5,0.001]
[1770574107065,0.002,2097.6,2097.1,1.19208337]
[1770574107259,0.002,2097.6,2097.2,0.59546104]
[1770574110270,0.002,2097.6,2097.2,2.78221803]
[1770574111147,0.002,2097.6,2097.2,0.59546104]
[1770574111968,0.002,2097.6,2097.1,1.1921214]
[1770574112173,0.002,2097.6,2097.2,0.59546104]
[1770574112689,0.002,2097.6,2097.2,1.78752396]
[1770574113386,0.002,2097.6,2097.2,0.59546104]
[1770574113549,0.002,2097.6,2097.2,1.7875251]
[1770574113946,0.002,2097.6,2097.2,2.78223044]
[1770574116675,0.002,2097.6,2097.4,0.001]
[1770574118880,0.002,2097.6,2097.4,0.59646104]
[1770574120275,0.002,2097.6,2097.4,0.001]
[1770574123962,0.002,2097.6,2097.4,0.59646104]
[1770574125257,0.002,2097.6,2097.4,1.57403875]
[1770574126386,0.002,2097.6,2097.4,0.59646104]
[1770574126684,0.002,2097.6,2097.1,4.7693916]
[1770574126685,0.99206059,2097.6,2097.1,0.001]
[1770574126863,0.99206059,2097.6,2097.2,0.34521235]
[1770574127063,0.002,2097.6,2097.2,0.34521235]
[1770574128776,0.002,2097.6,2097.3,0.97757771]
[1770574129293,0.002,2097.6,2097.4,0.97857771]
[1770574129858,0.002,2097.6,2097.5,0.34521235]
[1770574131788,0.002,2097.6,2097.4,0.001]
[1770574134090,0.002,2097.6,2097.5,0.34521235]
[1770574135393,1.1324421,2098.0,2097.5,0.34521235]
[1770574137774,2.12250269,2098.0,2097.5,0.34521235]
[1770574138110,0.99006059,2097.9,2097.5,0.34521235]
[1770574138905,1.19172466,2097.8,2097.5,0.34521235]
[1770574139199,1.19172466,2097.8,2097.4,0.001]
[1770574140615,1.19172466,2097.8,2097.1,0.001]
[1770574140616,0.99006059,2097.5,2097.1,0.001]
[1770574140774,4.32206059,2097.4,2097.1,0.001]
[1770574141712,1.19200877,2097.3,2097.1,0.001]
[1770574144017,2.18206936,2097.3,2096.6,0.001]
[1770574144424,0.1024,2097.2,2096.5,0.97757771]
[1770574144814,2.18206936,2097.3,2096.5,0.97757771]
[1770574146130,0.99006059,2097.2,2096.4,0.001]
[1770574147627,0.99006059,2097.2,2096.4,0.97857771]
[1770574148429,1.19212245,2097.1,2096.4,0.97857771]
[1770574148936,1.19212245,2097.1,2096.3,1.19357358]
[1770574148937,0.99006059,2096.8,2096.3,0.001]
[1770574149146,3.332,2096.7,2096.3,0.001]
[1770574149511,3.332,2096.7,2096.3,0.97857771]
[1770574150741,4.52435323,2096.7,2096.3,0.97857771]
[1770574152042,3.332,2096.7,2096.3,0.97857771]
[1770574152224,3.332,2096.7,2096.4,0.97757771]
[1770574152545,3.332,2096.7,2096.5,0.97757771]
[1770574152841,3.332,2097.2,2096.5,0.97757771]
[1770574154248,3.332,2097.2,2096.8,0.97757771]
[1770574154446,0.002,2097.1,2096.9,0.97757771]
[1770574157639,0.00031148,2097.1,2096.9,0.97757771]
[1770574157830,3.33053138,2097.2,2096.9,0.97757771]
[1770574159425,0.002,2097.3,2097.1,0.95735348]
[1770574160934,0.002,2097.3,2097.2,0.95735348]
[1770574161853,0.002,2097.3,2096.9,1.192235]
[1770574162054,0.002,2097.3,2096.9,2.14958848]
[1770574163458,0.002,2097.3,2097.0,0.95735348]
[1770574165860,0.002,2097.3,2097.2,0.95735348]
[1770574166846,0.002,2097.3,2097.0,2.14949417]
[1770574167234,0.002,2097.3,2097.2,0.001]
[1770574168455,4.81415302,2098.1,2097.2,0.001]
[1770574168456,0.002,2098.2,2097.3,0.95735348]
[1770574168939,0.002,2098.2,2097.2,0.001]
[1770574168940,1.04379808,2098.1,2097.2,0.001]
[1770574169140,0.99608929,2097.9,2097.2,0.001]
[1770574169535,3.332,2098.0,2097.2,0.95835348]
[1770574170139,4.32808929,2098.0,2097.2,0.95835348]
[1770574170860,1.19158031,2098.1,2097.4,0.95735348]
[1770574171063,5.52162626,2098.2,2097.4,0.95735348]
[1770574172768,5.52162626,2098.2,2097.4,2.14927249]
[1770574174765,4.52553697,2098.2,2097.5,0.95735348]
[1770574176464,3.334,2098.2,2097.5,0.95735348]
[1770574176638,5.52159074,2098.2,2097.3,0.95735348]
[1770574176841,4.52550145,2098.2,2097.5,0.95735348]
[1770574177647,3.334,2098.2,2097.5,0.95735348]
[1770574179772,3.334,2098.2,2097.7,0.95735348]
[1770574179971,0.002,2098.0,2097.7,0.95735348]
[1770574181669,0.002,2098.0,2097.4,2.14930464]
[1770574182664,0.002,2098.0,2097.4,2.14930363]
[1770574183065,0.002,2098.0,2097.5,0.95735348]
[1770574183884,0.002,2098.0,2097.6,2.14919177]
[1770574187497,0.002,2098.0,2097.7,0.94040061]
[1770574188293,0.002,2098.0,2097.4,0.94040061]
[1770574190991,0.002,2098.0,2097.3,0.94140061]
[1770574191180,0.92591702,2098.0,2097.3,0.001]
[1770574191573,0.92591702,2098.0,2097.3,2.13339902]
[1770574191774,0.002,2098.0,2097.4,2.13235182]
[1770574192721,0.002,2098.0,2097.5,0.94040061]
[1770574193005,0.002,2098.0,2097.4,1.19191825]
[1770574193206,0.002,2098.0,2097.6,0.001]
[1770574198016,0.002,2098.0,2097.6,0.94140061]
[1770574199716,0.002,2098.0,2097.6,0.001]
[1770574201807,0.002,2098.0,2097.6,0.94140061]
[1770574203105,0.002,2098.0,2097.8,0.94040061]
[1770574203685,0.002,2098.2,2097.8,0.94040061]
[1770574204416,4.76485767,2098.7,2097.8,0.94040061]
[1770574204417,0.92391702,2099.4,2099.1,0.24878877]
[1770574204716,0.92391702,2099.2,2098.4,0.94040061]
[1770574205105,0.22163018,2099.1,2098.4,0.94040061]
[1770574205307,0.92391702,2098.9,2098.2,0.94040061]
[1770574205492,0.92391702,2098.7,2097.9,1.19164139]
[1770574205686,0.92391702,2098.7,2097.9,0.94040061]
[1770574205916,0.002,2098.0,2097.9,2.13206545]
[1770574206111,0.92391702,2098.7,2097.9,2.13206482]
[1770574206918,0.22163018,2098.6,2097.9,2.13206482]
[1770574207424,1.41295616,2098.6,2098.0,0.94040061]
[1770574209121,0.22163018,2098.6,2098.0,0.94040061]
[1770574210209,4.52220822,2098.8,2098.1,1.19155426]
[1770574210404,0.22163018,2098.7,2098.1,2.13195487]
[1770574210815,1.1455472,2098.7,2097.9,2.13202946]
[1770574211012,1.1455472,2098.7,2097.9,1.19162885]
[1770574211213,0.92391702,2098.7,2097.9,1.19162885]
[1770574211400,0.92391702,2098.5,2097.7,1.19177211]
[1770574211598,0.92391702,2098.5,2097.8,1.19172113]
[1770574211902,0.92391702,2098.5,2097.7,2.13215421]
[1770574212106,1.1455472,2098.4,2097.7,2.1321745]
[1770574212425,0.92391702,2098.4,2097.7,2.1321745]
[1770574212734,2.33698789,2098.3,2097.6,1.19283087]
[1770574213295,2.33698789,2098.3,2097.6,1.19283538]
[1770574213719,2.33698789,2098.3,2097.6,2.13323599]
[1770574214403,2.33698789,2098.3,2097.6,0.94140061]
[1770574216444,0.91148257,2098.2,2097.6,0.001]
[1770574216601,2.10303683,2098.1,2097.6,0.001]
[1770574216942,0.22163018,2098.1,2097.6,0.92555768]
[1770574217126,0.22163018,2098.1,2097.6,0.001]
[1770574218534,0.22163018,2098.1,2097.8,0.001]
[1770574218725,1.19161105,2098.0,2097.8,0.001]
[1770574219032,3.331,2097.9,2097.4,0.001]
[1770574219226,9.56864555,2097.9,2097.4,0.001]
[1770574219420,0.22163018,2097.8,2097.4,0.001]
[1770574220911,1.19178147,2097.7,2097.4,0.001]
[1770574221409,0.22163018,2097.6,2097.2,0.001]
[1770574223641,0.22163018,2097.6,2097.2,0.92555768]
[1770574225445,3.331,2097.9,2097.2,0.92555768]
[1770574225749,0.22163018,2097.7,2097.3,0.92455768]
[1770574226323,3.331,2097.9,2097.3,0.92455768]
[1770574226524,0.22163018,2097.8,2097.3,0.92455768]
[1770574228264,0.22163018,2097.8,2097.4,2.11650962]
[1770574229834,1.41337679,2097.8,2097.2,0.001]
[1770574231965,0.22163018,2097.7,2097.5,0.001]
[1770574232468,0.002,2097.6,2097.5,0.001]
[1770574234252,0.002,2097.6,2097.3,0.001]
[1770574234569,0.22063018,2097.5,2097.3,0.001]
[1770574236369,0.21911088,2097.5,2097.3,0.001]
[1770574240355,0.002,2097.6,2097.3,0.001]
[1770574240671,0.002,2097.6,2097.3,0.92555768]
[1770574240874,4.52248268,2098.3,2097.4,0.92455768]
[1770574241247,0.22111088,2098.2,2097.4,0.92455768]
[1770574241663,0.22111088,2098.2,2097.6,1.52455768]
[1770574242870,1.19155426,2098.1,2097.6,1.52455768]
[1770574245273,0.91474087,2098.0,2097.3,0.001]
[1770574245572,1.13585175,2098.0,2097.3,0.001]
[1770574245752,0.91474087,2097.8,2097.5,0.001]
[1770574245953,4.24574087,2097.7,2097.3,0.001]
[1770574246356,0.22111088,2097.6,2097.3,0.001]
[1770574246569,1.13585175,2097.6,2097.2,0.001]
[1770574246888,0.91474087,2097.5,2097.0,0.001]
[1770574247047,1.13585175,2097.5,2097.0,0.001]
[1770574247395,2.10669281,2097.4,2097.0,0.001]
[1770574247551,2.10669281,2097.4,2096.7,0.001]
[1770574247552,1.13585175,2097.3,2096.7,0.001]
[1770574248281,0.91474087,2097.2,2096.7,0.001]
[1770574248653,0.22111088,2097.1,2096.7,0.001]
[1770574249289,1.1921793,2097.0,2096.7,0.001]
[1770574249654,0.22111088,2096.9,2096.7,0.001]
[1770574250061,0.22111088,2096.9,2096.5,0.001]
[1770574251153,0.22111088,2096.9,2096.5,0.98738976]
[1770574251363,0.22111088,2096.9,2096.6,0.98638976]
[1770574252178,1.41338519,2096.9,2096.6,0.98638976]
[1770574252382,1.41338519,2096.9,2096.5,0.001]
[1770574254382,0.22111088,2096.8,2096.5,0.98738976]
[1770574254604,0.22111088,2096.8,2096.5,0.001]
[1770574255278,0.22111088,2096.8,2096.6,0.98638976]
[1770574255670,0.22111088,2096.8,2096.5,0.001]
[1770574256281,3.331,2097.1,2096.7,0.98638976]
[1770574256493,4.86990956,2097.6,2096.7,0.98638976]
[1770574256494,0.22111088,2096.9,2096.7,0.98638976]
[1770574256698,4.52389511,2097.5,2096.7,0.98638976]
[1770574257598,4.52389511,2097.5,2096.7,2.17870945]
[1770574257775,4.52389511,2097.5,2096.8,0.98638976]
[1770574259375,0.002,2096.9,2096.8,0.98638976]
[1770574260499,0.002,2096.9,2096.8,2.17868277]
[1770574260700,0.002,2096.9,2096.8,0.98638976]
[1770574260898,0.002,2096.9,2096.8,2.17868277]
[1770574261111,3.332,2097.5,2096.9,0.98638976]
[1770574261312,0.002,2097.4,2096.9,0.98638976]
[1770574261492,0.002,2097.6,2096.9,0.98638976]
[1770574261877,1.19375831,2097.8,2096.9,0.98638976]
[1770574262178,0.002,2097.7,2096.9,0.98638976]
[1770574262513,0.002,2097.7,2097.1,0.98638976]
[1770574267111,0.002,2097.7,2097.3,0.98638976]
[1770574269628,0.002,2097.7,2097.5,0.98638976]
[1770574270234,0.002,2097.8,2097.5,0.98638976]
[1770574270411,0.002,2097.6,2097.5,0.98638976]
[1770574271095,0.002,2097.8,2097.3,2.17835841]
[1770574271305,0.002,2097.5,2097.3,2.17835841]
[1770574273123,0.002,2097.5,2097.4,0.98638976]
[1770574273893,0.002,2097.8,2097.4,1.19195194]
[1770574274121,0.002,2097.7,2097.5,0.98638976]
[1770574274804,0.002,2097.8,2097.4,1.19195194]
[1770574274805,0.002,2097.9,2097.6,0.98828214]
[1770574275008,3.332,2098.0,2097.5,0.98828214]
[1770574275009,3.09033456,2098.0,2097.5,0.98828214]
[1770574275727,0.002,2098.1,2097.5,0.98828214]
[1770574275728,0.002,2098.1,2097.6,2.18012043]
[1770574277921,0.002,2098.1,2097.7,0.98828214]
[1770574280126,0.002,2098.1,2097.8,1.19172466]
[1770574280335,0.002,2098.5,2097.9,0.98828214]
[1770574280629,6.39392383,2099.7,2097.9,0.98828214]
[1770574280630,0.12219545,2099.2,2098.3,0.98828214]
[1770574280870,2.15090603,2099.7,2098.8,0.98828214]
[1770574281016,0.96025515,2099.6,2098.5,0.98828214]
[1770574281711,2.15081374,2099.9,2098.5,1.03599093]
[1770574281950,0.96025515,2099.9,2098.5,0.98828214]
[1770574282176,0.96025515,2099.7,2098.5,0.98828214]
[1770574282328,0.96025515,2099.5,2098.6,1.19127037]
[1770574282625,0.96025515,2099.5,2098.6,2.17955251]
[1770574282826,0.96025515,2099.5,2098.5,1.19132666]
[1770574283750,0.96025515,2099.5,2098.5,2.1796088]
[1770574284124,0.002,2099.4,2098.5,2.1796088]
[1770574284321,0.002,2099.4,2098.6,0.98828214]
[1770574286344,0.002,2099.4,2098.8,0.98828214]
[1770574288566,0.002,2099.4,2099.0,0.98828214]
[1770574288863,0.002,2099.4,2098.9,1.1911001]
[1770574292759,0.96225515,2099.4,2098.6,2.17955251]
[1770574294772,2.15307814,2099.4,2098.6,2.17955251]
[1770574294951,0.96225515,2099.4,2098.6,2.17955251]
[1770574295281,2.15307688,2099.4,2098.6,2.17955251]
[1770574297177,2.15307688,2099.4,2098.7,0.001]
[1770574298887,0.002,2099.4,2098.8,2.17943899]
[1770574301276,0.96225515,2099.4,2098.7,1.19221189]
[1770574301873,0.96225515,2099.4,2098.8,1.1911454]
[1770574302080,0.96225515,2099.4,2098.7,1.19216856]
[1770574303269,2.15112829,2099.3,2098.7,0.001]
[1770574303471,0.96025515,2099.2,2098.7,0.001]
[1770574304601,0.96025515,2099.2,2098.5,0.001]
[1770574305380,2.1659881,2098.9,2098.5,0.001]
[1770574306305,0.974888,2098.8,2098.0,0.9542665]
[1770574307078,0.974888,2098.8,2097.8,5.47496107]
[1770574307612,0.974888,2098.6,2097.8,0.9542665]
[1770574307808,0.974888,2098.6,2097.7,1.19173852]
[1770574308104,0.974888,2098.6,2097.6,2.14707446]
[1770574308298,0.974888,2098.6,2097.7,1.19177937]
[1770574308503,0.974888,2098.6,2097.8,1.19172217]
[1770574308700,0.974888,2098.6,2097.7,2.14600577]
[1770574308887,0.974888,2098.6,2097.7,2.14603806]
[1770574309088,0.974888,2098.6,2098.0,0.001]
[1770574309598,2.16621513,2098.5,2098.0,0.001]
[1770574309785,1.19132713,2098.5,2098.0,0.001]
[1770574309984,0.974888,2098.4,2098.0,0.001]
[1770574311720,2.1663252,2098.4,2098.0,0.001]
[1770574312080,2.1663252,2098.4,2097.8,0.001]
[1770574312081,0.974888,2098.3,2097.8,0.001]
[1770574314390,0.974888,2098.1,2097.8,0.001]
[1770574316714,1.19161105,2098.0,2097.8,0.001]
[1770574317218,2.16649905,2098.0,2097.6,0.001]
[1770574317419,0.974888,2097.9,2097.0,0.9542665]
[1770574317917,0.974888,2097.9,2096.9,0.001]
[1770574318297,0.974888,2097.9,2096.9,1.19323542]
[1770574318493,0.974888,2097.9,2096.9,0.001]
[1770574318816,0.974888,2097.7,2096.9,0.001]
[1770574319520,0.974888,2097.5,2096.9,0.001]
[1770574319715,3.33,2097.5,2096.9,0.001]
[1770574319921,0.974888,2097.4,2096.9,0.001]
[1770574320217,1.02259679,2097.4,2096.7,0.001]
[1770574320924,0.974888,2097.2,2096.5,0.001]
[1770574321999,0.5,2097.0,2096.5,0.9552665]
[1770574322189,1.19183829,2097.6,2096.5,0.9552665]